bitfinex-derivatives/quotes_BNBF0:USTF0_20251203
["timestamp","ask_amount","ask_price","bid_price","bid_amount"]
[1764798564867,0.63660139,913.54,912.36,1.241]
[1764798565068,0.63660139,913.53,912.36,1.241]
[1764798565263,0.63660139,913.52,912.36,1.241]
[1764798565463,0.63660139,913.51,912.36,1.241]
[1764798565664,0.63660139,913.5,912.36,1.241]
[1764798565866,0.63660139,913.49,912.36,1.241]
[1764798566162,0.63660139,913.48,912.36,1.241]
[1764798566362,0.63660139,913.47,912.36,1.241]
[1764798566563,0.63660139,913.46,912.36,1.241]
[1764798566764,0.63660139,913.45,912.36,1.241]
[1764798566964,0.63660139,913.44,912.36,1.241]
[1764798567163,0.63660139,913.43,912.36,1.241]
[1764798567367,0.63660139,913.42,912.36,2.85573117]
[1764798567568,0.63660139,913.41,912.36,2.85573117]
[1764798567768,0.63660139,913.4,912.36,2.85573117]
[1764798568068,0.63660139,913.39,912.36,2.85573117]
[1764798568269,0.63660139,913.38,912.36,2.85573117]
[1764798568467,0.63660139,913.37,912.36,2.85573117]
[1764798568667,0.63660139,913.36,912.36,2.85573117]
[1764798568865,0.63660139,913.35,912.36,2.85573117]
[1764798569069,0.63660139,913.34,912.36,2.85573117]
[1764798569270,0.63660139,913.33,912.36,2.85573117]
[1764798569467,0.63660139,913.32,912.36,2.85573117]
[1764798569666,0.63660139,913.31,912.36,2.85573117]
[1764798569866,0.63660139,913.3,912.36,2.85573117]
[1764798570066,0.63660139,913.29,912.36,2.85573117]
[1764798570270,0.63660139,913.28,912.36,2.85573117]
[1764798570471,0.63660139,913.27,912.36,2.85573117]
[1764798570668,0.63660139,913.26,912.36,2.85573117]
[1764798570972,0.63660139,913.25,912.36,2.85573117]
[1764798571173,0.63660139,913.24,912.36,2.85573117]
[1764798571372,0.63660139,913.23,912.36,2.85573117]
[1764798571670,0.63660139,913.22,912.36,2.85573117]
[1764798571873,0.63660139,913.21,912.36,2.85573117]
[1764798572069,0.63660139,913.2,912.36,2.85573117]
[1764798572370,0.63660139,913.19,912.36,2.85573117]
[1764798572570,1.08644999,913.65,912.36,2.85573117]
[1764798572774,0.63667529,913.64,912.36,2.85573117]
[1764798572969,0.63667529,913.63,912.36,2.85573117]
[1764798573172,0.63667529,913.62,912.36,2.85573117]
[1764798573371,0.63667529,913.61,912.36,2.85573117]
[1764798573569,0.63667529,913.6,912.36,2.85573117]
[1764798573774,0.63667529,913.59,912.36,2.85573117]
[1764798573970,0.63667529,913.58,912.36,2.85573117]
[1764798574175,0.63667529,913.57,912.36,2.85573117]
[1764798574375,0.63667529,913.56,912.36,2.85573117]
[1764798574575,0.63667529,913.55,912.36,2.85573117]
[1764798574872,0.63667529,913.54,912.36,2.85573117]
[1764798575071,0.63667529,913.53,912.36,2.85573117]
[1764798575273,0.63667529,913.52,912.36,2.85573117]
[1764798575475,0.63667529,913.51,912.36,2.85573117]
[1764798575676,0.63667529,913.5,912.36,2.85573117]
[1764798575876,0.63667529,913.49,912.36,2.85573117]
[1764798576072,0.63667529,913.48,912.36,2.85573117]
[1764798576278,0.63667529,913.47,912.37,1.61473117]
[1764798576476,0.63667529,913.46,912.37,2.61073117]
[1764798576674,0.63667529,913.45,912.37,2.61073117]
[1764798576874,0.63667529,913.44,912.37,2.61073117]
[1764798577078,0.63667529,913.43,912.37,2.61073117]
[1764798577276,0.63667529,913.42,912.37,2.61073117]
[1764798577475,0.63667529,913.41,912.37,2.61073117]
[1764798577675,0.63667529,913.4,912.37,2.61073117]
[1764798577878,0.63667529,913.39,912.37,2.61073117]
[1764798578077,0.63667529,913.38,912.37,2.61073117]
[1764798578377,0.63667529,913.37,912.37,2.61073117]
[1764798578582,0.63667529,913.36,912.37,2.61073117]
[1764798578778,0.63667529,913.35,912.37,2.61073117]
[1764798578983,0.63667529,913.34,912.37,2.61073117]
[1764798579184,0.63667529,913.33,912.37,2.61073117]
[1764798579386,0.63667529,913.32,912.37,2.61073117]
[1764798579586,0.63667529,913.31,912.37,2.61073117]
[1764798579885,0.63667529,913.3,912.37,2.61073117]
[1764798580083,0.63667529,913.29,912.37,2.61073117]
[1764798580385,0.63667529,913.28,912.37,2.61073117]
[1764798580585,0.63667529,913.27,912.37,2.61073117]
[1764798580781,0.63667529,913.26,912.37,2.61073117]
[1764798580985,0.63667529,913.25,912.37,2.61073117]
[1764798581281,0.63667529,913.24,912.37,2.61073117]
[1764798581485,0.63667529,913.23,912.37,2.61073117]
[1764798581683,0.63667529,913.22,912.37,2.61073117]
[1764798581881,0.63667529,913.21,912.37,2.61073117]
[1764798582084,0.63667529,913.2,912.37,2.61073117]
[1764798582285,0.63667529,913.19,912.37,2.61073117]
[1764798582481,0.63667529,913.18,912.37,2.61073117]
[1764798582680,1.08644999,913.64,912.37,2.61073117]
[1764798582884,0.63677846,913.63,912.37,2.61073117]
[1764798583084,0.63677846,913.62,912.37,2.61073117]
[1764798583287,0.63677846,913.61,912.37,2.61073117]
[1764798583486,0.63677846,913.6,912.37,2.61073117]
[1764798583684,0.63677846,913.59,912.37,2.61073117]
[1764798583984,0.63677846,913.58,912.37,0.996]
[1764798584188,0.63677846,913.57,912.37,0.996]
[1764798584489,0.63677846,913.56,912.37,0.996]
[1764798584788,0.63677846,913.55,912.37,0.996]
[1764798584986,0.63677846,913.54,912.37,0.996]
[1764798585189,0.63677846,913.53,912.38,1.178]
[1764798585485,0.63677846,913.52,912.38,1.178]
[1764798585684,0.63677846,913.51,912.38,1.178]
[1764798585889,0.63677846,913.5,912.38,1.178]
[1764798586088,0.63677846,913.49,912.38,1.178]
[1764798586287,0.63677846,913.48,912.38,1.178]
[1764798586589,0.63677846,913.47,912.38,1.178]
[1764798586789,0.63677846,913.46,912.38,1.178]
[1764798586990,0.63677846,913.45,912.38,1.178]
[1764798587192,0.63677846,913.44,912.38,1.178]
[1764798587390,0.63677846,913.43,912.38,1.178]
[1764798587590,0.63677846,913.42,912.38,1.178]
[1764798587790,0.63677846,913.41,912.38,1.178]
[1764798587991,0.63677846,913.4,912.38,1.178]
[1764798588194,0.63677846,913.39,912.38,1.178]
[1764798588390,0.63677846,913.38,912.38,1.178]
[1764798588592,0.63677846,913.37,912.38,1.178]
[1764798588791,0.63677846,913.36,912.38,1.178]
[1764798589091,0.63677846,913.35,912.38,1.178]
[1764798589289,0.63677846,913.34,912.38,1.178]
[1764798589488,0.63677846,913.33,912.38,1.178]
[1764798589693,0.63677846,913.32,912.38,1.178]
[1764798589893,0.63677846,913.31,912.38,1.178]
[1764798590095,0.63677846,913.3,912.38,1.178]
[1764798590293,0.63677846,913.29,912.38,1.178]
[1764798590493,0.63677846,913.28,912.38,1.178]
[1764798590690,0.63677846,913.27,912.38,1.178]
[1764798590991,0.63677846,913.26,912.38,1.178]
[1764798591189,0.63677846,913.25,912.38,1.178]
[1764798591489,0.63677846,913.24,912.38,1.178]
[1764798591694,0.63677846,913.23,912.38,1.178]
[1764798591993,0.63677846,913.22,912.38,1.178]
[1764798592192,0.63677846,913.21,912.38,1.178]
[1764798592395,0.63677846,913.2,912.38,1.178]
[1764798592598,0.63677846,913.19,912.38,1.178]
[1764798592796,0.63677846,913.18,912.38,1.178]
[1764798592997,0.63677846,913.17,912.38,1.178]
[1764798593293,0.63677846,913.16,912.38,1.178]
[1764798593497,0.63677846,913.15,912.38,1.178]
[1764798593698,0.63677846,913.14,912.38,1.178]
[1764798593898,0.63677846,913.13,912.38,1.178]
[1764798594098,0.63677846,913.12,912.38,1.178]
[1764798594396,0.63677846,913.11,912.38,1.178]
[1764798594596,0.63677846,913.1,912.38,1.178]
[1764798594892,0.63677846,913.09,912.38,1.178]
[1764798595097,0.63677846,913.08,912.38,1.178]
[1764798595294,0.63677846,913.07,912.38,1.178]
[1764798595494,0.63677846,913.06,912.38,1.178]
[1764798595695,0.63677846,913.05,912.38,1.178]
[1764798595894,0.63677846,913.04,912.38,1.178]
[1764798596097,0.63677846,913.03,912.38,1.178]
[1764798596397,0.63677846,913.02,912.38,1.178]
[1764798596598,0.63677846,913.01,912.38,1.178]
[1764798596798,0.01317873,914.21,912.38,1.178]
[1764798596799,0.63677846,913.0,912.38,1.178]
[1764798596998,2.73887118,914.28,912.38,1.178]
[1764798596999,0.63677846,912.99,912.38,1.178]
[1764798597200,0.63677846,912.98,912.38,1.178]
[1764798597399,0.63677846,912.97,912.38,1.178]
[1764798597696,1.08644999,913.43,912.38,1.178]
[1764798597900,0.63692251,913.42,912.38,1.178]
[1764798598195,0.63692251,913.41,912.38,1.178]
[1764798598400,0.63692251,913.4,912.38,1.178]
[1764798598699,0.63692251,913.39,912.38,1.178]
[1764798598899,0.63692251,913.38,912.38,1.178]
[1764798599098,0.63692251,913.37,912.38,1.178]
[1764798599301,0.63692251,913.36,912.38,1.178]
[1764798599497,0.63692251,913.35,912.38,1.178]
[1764798599699,0.63692251,913.34,912.38,1.178]
[1764798599900,0.63692251,913.33,912.38,1.178]
[1764798600198,0.63692251,913.32,912.38,1.178]
[1764798600401,0.63692251,913.31,912.38,1.178]
[1764798600601,0.63692251,913.3,912.38,1.178]
[1764798600798,0.63692251,913.29,912.38,1.178]
[1764798600998,0.63692251,913.28,912.38,1.178]
[1764798601198,0.63692251,913.27,912.38,1.178]
[1764798601399,0.63692251,913.26,912.38,1.178]
[1764798601598,0.63692251,913.25,912.38,1.178]
[1764798601801,1.08644999,913.43,912.38,1.178]
[1764798601802,0.63692251,913.24,912.38,1.178]
[1764798602001,0.63692251,913.23,912.38,1.178]
[1764798602301,0.63692251,913.22,912.38,1.178]
[1764798602498,0.63692251,913.21,912.38,1.178]
[1764798602801,0.63692251,913.2,912.38,1.178]
[1764798603001,1.08644999,913.44,912.38,1.178]
[1764798603002,0.63692251,913.19,912.38,1.178]
[1764798603201,0.63692251,913.18,912.38,1.178]
[1764798603398,0.63692251,913.17,912.39,1.168]
[1764798603602,0.63692251,913.16,912.39,1.168]
[1764798603798,0.63692251,913.15,912.39,1.168]
[1764798604097,0.63692251,913.14,912.39,1.168]
[1764798604301,0.63692251,913.13,912.39,1.168]
[1764798604501,0.63692251,913.12,912.39,1.168]
[1764798604701,0.63692251,913.11,912.39,1.168]
[1764798604898,0.63692251,913.1,912.39,1.168]
[1764798605210,0.63692251,913.09,912.39,1.168]
[1764798605401,0.63692251,913.08,912.39,1.168]
[1764798605604,0.63692251,913.07,912.39,1.168]
[1764798605798,0.63692251,913.06,912.39,1.168]
[1764798605998,0.63692251,913.05,912.39,1.168]
[1764798606296,0.63692251,913.04,912.39,1.168]
[1764798606497,0.63692251,913.03,912.39,1.168]
[1764798606697,0.63692251,913.02,912.39,1.168]
[1764798606897,0.63692251,913.01,912.39,1.168]
[1764798607099,0.63692251,913.0,912.39,1.168]
[1764798607299,0.63692251,912.99,912.39,1.168]
[1764798607502,0.63692251,912.98,912.39,1.168]
[1764798607702,0.63692251,912.97,912.39,1.168]
[1764798607900,1.08644999,913.43,912.39,1.168]
[1764798608101,0.6369236,913.42,912.39,1.168]
[1764798608304,0.6369236,913.41,912.39,1.168]
[1764798608505,0.6369236,913.4,912.39,1.168]
[1764798608705,0.6369236,913.39,912.39,1.168]
[1764798608907,0.6369236,913.38,912.39,1.168]
[1764798609106,0.6369236,913.37,912.39,1.168]
[1764798609307,0.6369236,913.36,912.39,1.168]
[1764798609502,0.6369236,913.35,912.39,1.168]
[1764798609701,0.6369236,913.34,912.39,1.168]
[1764798609900,0.6369236,913.33,912.39,1.168]
[1764798610106,0.6369236,913.32,912.39,1.168]
[1764798610307,0.6369236,913.31,912.39,1.168]
[1764798610505,0.6369236,913.3,912.39,1.168]
[1764798610706,0.6369236,913.29,912.39,1.168]
[1764798610907,0.6369236,913.28,912.39,1.168]
[1764798611107,0.6369236,913.27,912.39,1.168]
[1764798611307,0.6369236,913.26,912.39,1.168]
[1764798611607,0.6369236,913.25,912.39,1.168]
[1764798611807,0.6369236,913.24,912.39,1.168]
[1764798612005,0.6369236,913.23,912.39,1.168]
[1764798612307,0.6369236,913.22,912.39,1.168]
[1764798612506,0.6369236,913.21,912.39,1.168]
[1764798612706,0.6369236,913.2,912.39,1.168]
[1764798612909,0.6369236,913.19,912.39,1.168]
[1764798613207,0.6369236,913.18,912.39,1.168]
[1764798613405,0.6369236,913.17,912.39,1.168]
[1764798613704,0.6369236,913.16,912.39,1.168]
[1764798613908,0.6369236,913.15,912.39,1.168]
[1764798614105,0.6369236,913.14,912.39,1.168]
[1764798614309,0.6369236,913.13,912.39,1.168]
[1764798614509,0.6369236,913.12,912.39,1.168]
[1764798614710,0.6369236,913.11,912.39,1.168]
[1764798614906,1.08644999,913.57,912.39,1.168]
[1764798615208,0.6369223,913.56,912.39,1.168]
[1764798615405,0.6369223,913.55,912.39,1.168]
[1764798615705,0.6369223,913.54,912.39,1.168]
[1764798615909,0.6369223,913.53,912.39,1.168]
[1764798616106,0.6369223,913.52,912.39,1.168]
[1764798616306,0.6369223,913.51,912.39,1.168]
[1764798616506,0.6369223,913.5,912.39,1.168]
[1764798616710,0.6369223,913.49,912.39,1.168]
[1764798617011,1.08644999,913.46,912.39,1.168]
[1764798617310,0.6369223,913.45,912.39,1.168]
[1764798617510,0.6369223,913.44,912.39,1.168]
[1764798617710,0.6369223,913.43,912.39,1.168]
[1764798618010,0.6369223,913.42,912.39,1.168]
[1764798618211,0.6369223,913.41,912.39,1.168]
[1764798618412,0.6369223,913.4,912.39,1.168]
[1764798618605,0.6369223,913.39,912.39,1.168]
[1764798618809,1.08644999,913.46,912.39,1.168]
[1764798618810,0.6369223,913.38,912.39,1.168]
[1764798619108,0.6369223,913.37,912.39,1.168]
[1764798619307,0.6369223,913.36,912.39,1.168]
[1764798619509,0.6369223,913.35,912.39,1.168]
[1764798619711,0.6369223,913.34,912.39,1.168]
[1764798619906,0.6369223,913.33,912.39,1.168]
[1764798620208,0.6369223,913.32,912.39,1.168]
[1764798620411,0.6369223,913.31,912.39,1.168]
[1764798620707,0.6369223,913.3,912.39,1.168]
[1764798620906,0.6369223,913.29,912.39,1.168]
[1764798621108,0.6369223,913.28,912.39,1.168]
[1764798621312,0.6369223,913.27,912.39,1.168]
[1764798621507,0.6369223,913.26,912.39,1.168]
[1764798621806,0.6369223,913.25,912.39,1.168]
[1764798622107,0.6369223,913.24,912.39,1.168]
[1764798622306,0.6369223,913.23,912.39,1.168]
[1764798622510,0.6369223,913.22,912.39,1.168]
[1764798622706,0.6369223,913.21,912.39,1.168]
[1764798622910,0.6369223,913.2,912.39,1.168]
[1764798623107,0.6369223,913.19,912.39,1.168]
[1764798623313,0.6369223,913.18,912.39,1.168]
[1764798623511,0.6369223,913.17,912.39,1.168]
[1764798623708,0.6369223,913.16,912.39,1.168]
[1764798623912,0.6369223,913.15,912.39,1.168]
[1764798624109,0.6369223,913.14,912.39,1.168]
[1764798624407,0.6369223,913.13,912.39,1.168]
[1764798624611,0.6369223,913.12,912.39,1.168]
[1764798624811,0.6369223,913.11,912.39,1.168]
[1764798625012,0.6369223,913.1,912.39,1.168]
[1764798625313,0.6369223,913.09,912.39,1.168]
[1764798625513,0.6369223,913.08,912.39,1.168]
[1764798625813,0.6369223,913.07,912.39,1.168]
[1764798626014,0.6369223,913.06,912.39,1.168]
[1764798626310,1.08644999,913.52,912.39,1.168]
[1764798626613,0.63646987,913.51,912.39,1.168]
[1764798626815,0.63646987,913.5,912.39,1.168]
[1764798627011,0.63646987,913.49,912.39,1.168]
[1764798627214,0.63646987,913.48,912.39,1.168]
[1764798627414,0.63646987,913.47,912.39,1.168]
[1764798627710,0.63646987,913.46,912.39,1.168]
[1764798627911,0.63646987,913.45,912.39,1.168]
[1764798628109,0.63646987,913.44,912.39,1.168]
[1764798628312,0.63646987,913.43,912.39,1.168]
[1764798628512,0.63646987,913.42,912.39,1.168]
[1764798628716,0.63646987,913.41,912.39,1.168]
[1764798628914,0.63646987,913.4,912.39,1.168]
[1764798629216,1.08644999,913.51,912.39,1.168]
[1764798629217,0.63646987,913.39,912.39,1.168]
[1764798629414,0.63646987,913.38,912.39,1.168]
[1764798629615,0.63646987,913.37,912.39,1.168]
[1764798629814,0.63646987,913.36,912.39,1.168]
[1764798630014,0.63646987,913.35,912.39,1.168]
[1764798630314,0.63646987,913.34,912.39,1.168]
[1764798630513,0.63646987,913.33,912.39,1.168]
[1764798630713,0.63646987,913.32,912.39,1.168]
[1764798630914,0.63646987,913.31,912.39,1.168]
[1764798631214,0.63646987,913.3,912.39,1.168]
[1764798631413,0.63646987,913.29,912.39,1.168]
[1764798631614,0.63646987,913.28,912.39,1.168]
[1764798631816,0.63646987,913.27,912.39,1.168]
[1764798632017,0.63646987,913.26,912.39,1.168]
[1764798632314,0.63646987,913.25,912.39,1.168]
[1764798632516,0.63646987,913.24,912.39,1.168]
[1764798632717,0.63646987,913.23,912.39,1.168]
[1764798632918,0.63646987,913.22,912.39,1.168]
[1764798633116,0.63646987,913.21,912.39,1.168]
[1764798633414,0.63646987,913.2,912.39,1.168]
[1764798633714,0.63646987,913.19,912.39,1.168]
[1764798633913,0.63646987,913.18,912.39,1.168]
[1764798634115,0.63646987,913.17,912.39,1.168]
[1764798634319,0.63646987,913.16,912.39,1.168]
[1764798634516,0.63646987,913.15,912.39,1.168]
[1764798634715,1.08644999,913.5,912.39,1.168]
[1764798634716,0.63646987,913.14,912.39,1.168]
[1764798635020,0.63646987,913.13,912.4,1.216]
[1764798635320,0.63646987,913.12,912.4,1.216]
[1764798635614,0.63646987,913.11,912.4,1.216]
[1764798635816,0.63646987,913.1,912.4,1.216]
[1764798636021,0.63646987,913.09,912.4,1.216]
[1764798636320,0.63646987,913.08,912.4,1.216]
[1764798636617,0.63646987,913.07,912.4,1.216]
[1764798636821,0.63646987,913.06,912.4,1.216]
[1764798637117,0.63646987,913.05,912.4,1.216]
[1764798637315,0.63646987,913.04,912.4,1.216]
[1764798637519,0.63646987,913.03,912.4,1.216]
[1764798637718,1.08644999,913.49,912.4,1.216]
[1764798637921,0.6368278,913.48,912.4,1.216]
[1764798638221,0.6368278,913.47,912.4,1.216]
[1764798638521,0.6368278,913.46,912.4,1.216]
[1764798638721,0.6368278,913.45,912.4,1.216]
[1764798638921,0.6368278,913.44,912.4,1.216]
[1764798639120,0.6368278,913.43,912.4,1.216]
[1764798639323,0.6368278,913.42,912.4,1.216]
[1764798639521,0.6368278,913.41,912.4,1.216]
[1764798639720,0.6368278,913.4,912.4,1.216]
[1764798640020,0.6368278,913.39,912.4,1.216]
[1764798640220,0.6368278,913.38,912.4,1.216]
[1764798640421,0.6368278,913.37,912.4,1.216]
[1764798640721,0.6368278,913.36,912.4,1.216]
[1764798641016,0.6368278,913.35,912.4,1.216]
[1764798641218,0.6368278,913.34,912.4,1.216]
[1764798641422,0.6368278,913.33,912.4,1.216]
[1764798641622,0.6368278,913.32,912.4,1.216]
[1764798641822,0.6368278,913.31,912.4,1.216]
[1764798642119,0.6368278,913.3,912.4,1.216]
[1764798642322,0.6368278,913.29,912.4,1.216]
[1764798642622,0.6368278,913.28,912.4,1.216]
[1764798642822,0.6368278,913.27,912.4,1.216]
[1764798643124,0.6368278,913.26,912.4,1.216]
[1764798643320,0.6368278,913.25,912.4,1.216]
[1764798643620,0.6368278,913.24,912.4,1.216]
[1764798643829,0.6368278,913.23,912.4,1.216]
[1764798644030,0.6368278,913.22,912.4,1.216]
[1764798644326,0.6368278,913.21,912.4,1.216]
[1764798644526,0.6368278,913.2,912.4,1.216]
[1764798644827,0.6368278,913.19,912.4,1.216]
[1764798645025,0.6368278,913.18,912.4,1.216]
[1764798645224,0.6368278,913.17,912.4,1.216]
[1764798645430,0.6368278,913.16,912.4,1.216]
[1764798645629,0.6368278,913.15,912.4,1.216]
[1764798645829,0.6368278,913.14,912.4,1.216]
[1764798646130,0.6368278,913.13,912.4,1.216]
[1764798646329,0.6368278,913.12,912.4,1.216]
[1764798646529,0.6368278,913.11,912.4,1.216]
[1764798646730,0.6368278,913.1,912.4,1.216]
[1764798646933,0.6368278,913.09,912.4,1.216]
[1764798647133,0.6368278,913.08,912.4,1.216]
[1764798647330,0.6368278,913.07,912.4,1.216]
[1764798647533,0.6368278,913.06,912.4,1.216]
[1764798647729,0.6368278,913.05,912.4,1.216]
[1764798647930,0.6368278,913.04,912.4,1.216]
[1764798648231,0.6368278,913.03,912.4,1.216]
[1764798648432,0.6368278,913.02,912.4,1.216]
[1764798648730,0.6368278,913.01,912.41,1.252]
[1764798648932,0.6368278,913.0,912.41,1.252]
[1764798649133,1.08644999,913.46,912.41,1.252]
[1764798649331,0.63709701,913.45,912.41,1.252]
[1764798649536,0.63709701,913.44,912.41,1.252]
[1764798649734,0.63709701,913.43,912.41,1.252]
[1764798649935,0.63709701,913.42,912.41,1.252]
[1764798650135,0.63709701,913.41,912.41,1.252]
[1764798650435,0.63709701,913.4,912.41,1.252]
[1764798650636,0.63709701,913.39,912.41,1.252]
[1764798650834,0.63709701,913.38,912.41,1.252]
[1764798651032,0.63709701,913.37,912.41,1.252]
[1764798651332,0.63709701,913.36,912.41,1.252]
[1764798651530,0.63709701,913.35,912.41,1.252]
[1764798651834,0.63709701,913.34,912.41,1.252]
[1764798652131,0.63709701,913.33,912.41,1.252]
[1764798652334,0.63709701,913.32,912.41,1.252]
[1764798652535,0.63709701,913.31,912.41,1.252]
[1764798652831,0.63709701,913.3,912.41,1.252]
[1764798653031,0.63709701,913.29,912.41,1.252]
[1764798653236,0.63709701,913.28,912.41,1.252]
[1764798653435,0.63709701,913.27,912.41,1.252]
[1764798653636,0.63709701,913.26,912.41,1.252]
[1764798653836,0.63709701,913.25,912.41,1.252]
[1764798654031,0.63709701,913.24,912.41,1.252]
[1764798654234,0.63709701,913.23,912.41,1.252]
[1764798654435,0.63709701,913.22,912.41,1.252]
[1764798654636,0.63709701,913.21,912.41,1.252]
[1764798654837,0.63709701,913.2,912.41,1.252]
[1764798655036,0.63709701,913.19,912.41,1.252]
[1764798655236,1.08644999,913.42,912.41,1.252]
[1764798655237,0.63709701,913.18,912.41,1.252]
[1764798655436,0.63709701,913.17,912.41,1.252]
[1764798655737,0.63709701,913.16,912.41,1.252]
[1764798656038,0.63709701,913.15,912.41,1.252]
[1764798656233,0.63709701,913.14,912.41,1.252]
[1764798656434,0.63709701,913.13,912.41,1.252]
[1764798656636,0.63709701,913.12,912.41,1.252]
[1764798656934,0.63709701,913.11,912.41,1.252]
[1764798657137,0.63709701,913.1,912.41,1.252]
[1764798657433,0.63709701,913.09,912.41,1.252]
[1764798657636,0.63709701,913.08,912.41,1.252]
[1764798657837,0.63709701,913.07,912.42,1.326]
[1764798658037,0.63709701,913.06,912.42,1.326]
[1764798658235,0.63709701,913.05,912.42,1.326]
[1764798658434,0.63709701,913.04,912.42,1.326]
[1764798658639,0.63709701,913.03,912.42,1.326]
[1764798658836,0.63709701,913.02,912.42,1.326]
[1764798659040,0.63709701,913.01,912.42,1.326]
[1764798659340,0.63709701,913.0,912.42,1.326]
[1764798659640,0.63709701,912.99,912.42,1.326]
[1764798659834,0.63709701,912.98,912.42,1.326]
[1764798660036,0.63709701,912.97,912.42,1.326]
[1764798660236,0.63709701,912.96,912.42,1.326]
[1764798660435,0.63709701,912.95,912.42,1.326]
[1764798660741,0.63709701,912.94,912.42,1.326]
[1764798660938,0.63709701,912.93,912.42,1.326]
[1764798661136,0.63709701,912.92,912.42,1.326]
[1764798661440,0.63709701,912.91,912.42,1.326]
[1764798661736,0.63709701,912.9,912.42,1.326]
[1764798661935,0.63709701,912.89,912.42,1.326]
[1764798662139,0.63709701,912.88,912.42,1.326]
[1764798662343,0.63709701,912.87,912.42,1.326]
[1764798662639,0.63709701,912.86,912.42,1.326]
[1764798662836,0.63709701,912.85,912.42,1.326]
[1764798663040,0.63709701,912.84,912.42,1.326]
[1764798663237,0.63709701,912.83,912.42,1.326]
[1764798663440,0.63709701,912.82,912.42,1.326]
[1764798663637,1.08644999,913.25,912.42,1.326]
[1764798663638,0.63709701,912.81,912.42,1.326]
[1764798663840,0.63709701,912.8,912.42,1.326]
[1764798664038,0.63709701,912.79,912.42,1.326]
[1764798664239,1.08644999,913.26,912.42,1.326]
[1764798664437,0.63734296,913.25,912.42,1.326]
[1764798664637,0.63734296,913.24,912.42,1.326]
[1764798664943,0.63734296,913.23,912.42,1.326]
[1764798665239,0.63734296,913.22,912.42,1.326]
[1764798665440,0.63734296,913.21,912.42,1.326]
[1764798665640,0.63734296,913.2,912.42,1.326]
[1764798665840,0.63734296,913.19,912.42,1.326]
[1764798666038,0.63734296,913.18,912.42,1.326]
[1764798666243,0.63734296,913.17,912.42,1.326]
[1764798666440,0.63734296,913.16,912.42,1.326]
[1764798666643,0.63734296,913.15,912.42,1.326]
[1764798666843,0.63734296,913.14,912.42,1.326]
[1764798667140,0.63734296,913.13,912.42,1.326]
[1764798667345,0.63734296,913.12,912.42,1.326]
[1764798667644,1.08644999,913.41,912.42,1.326]
[1764798667645,0.63734296,913.11,912.42,1.326]
[1764798667944,0.63734296,913.1,912.42,1.326]
[1764798668145,0.63734296,913.09,912.42,1.326]
[1764798668347,0.63734296,913.08,912.42,1.326]
[1764798668545,0.63734296,913.07,912.42,1.326]
[1764798668746,0.63734296,913.06,912.42,1.326]
[1764798668946,0.63734296,913.05,912.42,1.326]
[1764798669245,0.63734296,913.04,912.42,1.326]
[1764798669441,0.63734296,913.03,912.42,1.326]
[1764798669746,0.63734296,913.02,912.42,1.326]
[1764798669945,0.63734296,913.01,912.42,1.326]
[1764798670142,0.63734296,913.0,912.42,1.326]
[1764798670342,0.63734296,912.99,912.42,1.326]
[1764798670542,0.63734296,912.98,912.42,1.326]
[1764798670744,0.63734296,912.97,912.42,1.326]
[1764798670943,0.63734296,912.96,912.42,1.326]
[1764798671147,0.63734296,912.95,912.42,1.326]
[1764798671344,1.08644999,913.44,912.42,1.326]
[1764798671545,0.63713317,913.43,912.42,1.326]
[1764798671745,0.63713317,913.42,912.42,1.326]
[1764798671942,0.63713317,913.41,912.42,1.326]
[1764798672144,0.63713317,913.4,912.42,1.326]
[1764798672447,0.63713317,913.39,912.42,1.326]
[1764798672744,0.63713317,913.38,912.42,1.326]
[1764798672948,0.63713317,913.37,912.42,1.326]